Cogmind - Beta 15 @@@ ROGUE MODE // 2025.09.19 @ 03:27:51 Player: shapeshifter Result: Escaped singularity! Performance ------------- Evolutions (9) 4500 Regions Visited (29) 5800 Robots Destroyed (248) 1240 Value Destroyed (10790) 10790 Prototype IDs (244) 4880 Alien Tech Used (14) 2800 Bonus (47445) 47445 TOTAL SCORE: 77455 Bonus ------- Triggered Max Security 2000 High Alert Combat Kills 2754 Follower Combat Kills 2772 Entered DSFs 500 Aligned with FarCom 300 Met Data Miner 300 Used Data Conduit 3000 Built Enhanced Grunts 300 A7 Reached Mainframe 300 Met R17 at Cetus 500 Used Core Reset Matrix 3000 Met R17 at Research 2000 Pursued by Intercept 1500 Integrated Exoskeleton 5000 Met MAIN.C 5000 Met Architect 300 Destroyed Architect 15000 Win 3000 Friendly Fire -81 Cogmind --------- Core Integrity 73/1600 Matter 241/300 Energy 444/450 System Corruption 0% +Membrane Temperature Cool (0) Movement Walking (30) Location Near Former Tau Ceti IV Parts ------- > --- POWER (1) -------- Quantum Reactor > --- PROPULSION (3) --- Sigix Exoskeleton > --- UTILITY (5) ------ Advanced Heat Sink Large Storage Unit Improved Hacking Suite Improved System Shield > --- WEAPON (2) ------- Core Cannon > --- INVENTORY (15) --- Micro Antimatter Reactor Micro Antimatter Reactor Sigix Sheargun Sigix Sheargun Sigix Sheargun Sigix Sheargun Enhanced Nova Cannon Advanced Datajack Peak State ------------ > --- POWER ------------ Quantum Reactor > --- PROPULSION ------- Sigix Exoskeleton > --- UTILITY ---------- Large Storage Unit Experimental Matter Compressor Advanced Force Booster Improved Hacking Suite Improved System Shield > --- WEAPON ----------- Sigix Sheargun Sigix Sheargun > --- INVENTORY -------- Micro Antimatter Reactor Micro Antimatter Reactor Advanced Heat Sink High-powered Transdimensional Reconstructor High-powered Transdimensional Reconstructor Sigix Sheargun Sigix Sheargun Enhanced Nova Cannon Core Cannon Advanced Datajack [Rating: 233] Favorites ----------- Power Heavy Ion Engine Engine Heavy Ion Engine Power Core Neutrino Core Reactor Micro Antimatter Reactor Propulsion Light Treads Treads Light Treads Leg Carbon-fiber Leg Hover Unit Cooled Gravmag System Flight Unit Improved VTOL Module Utility Large Storage Unit Device Advanced Sensor Array Storage Large Storage Unit Processor Improved Signal Interpreter Hackware Ghost Barrier Protection Hardened Light Armor Plating Artifact Microwarp Drive Weapon Improved Assault Rifle Energy Gun Sigix Sheargun Energy Cannon Long-range Proton Cannon Ballistic Gun Improved Assault Rifle Ballistic Cannon AWS/Autocannon Launcher Precision Grenade Launcher Special Weapon Plasma Cutter Impact Weapon Powered Hammer Slashing Weapon Greatsword Piercing Weapon Enhanced Force Lance Special Melee Weapon Advanced Datajack Build | -11 -10 -10 -9 -9 -9 -8 -8 -7 -6 -6 -6 -6 -6 -6 -5 -5 -5 -5 -5 -5 -4 -4 -3 -2 -2 -2 -1 -1 -1 ------- Run | Yrd Mat Min Mat Min Exi Min Mat Fac Fac Was Fac Low Low Dat Pro Fac Ext Cet Arc Hub Fac DSF Res Res Qua Sec Acc Com Ac0 Slots Evolved 18 | . . . 2 . . . 2 2 2 . . . . . . 2 . . . . 2 . 2 2 . . 2 . . Power 1 | . . . . . . . . . . . . . . . . . . . . . . . 1 . . . . . . Propulsion 5 | . . . . . . . . 2 2 . . . . . . . . . . . . . . 1 . . . . . Utility 11 | . . . 1 . . . 2 . . . . . . . . 2 . . . . 2 . 1 1 . . 2 . . Weapon 1 | . . . 1 . . . . . . . . . . . . . . . . . . . . . . . . . . Parts Attached 214 | 8 4 . 12 3 15 5 30 2 19 1 10 1 4 4 4 5 14 11 3 . . 5 25 6 4 4 6 9 . Power 22 | 2 . . 1 . . 1 6 1 2 . 1 . . 1 . . 1 2 . . . . 2 1 . . . 1 . Engine 13 | 2 . . 1 . . 1 5 1 1 . 1 . . 1 . . . . . . . . . . . . . . . Core 3 | . . . . . . . 1 . 1 . . . . . . . 1 . . . . . . . . . . . . Reactor 6 | . . . . . . . . . . . . . . . . . . 2 . . . . 2 1 . . . 1 . Propulsion 60 | 2 . . 3 1 5 1 8 . 7 . 4 . 2 . 3 . 8 3 . . . . 9 2 1 1 . . . Treads 23 | 2 . . 3 1 5 1 8 . . . . . . . . . . 3 . . . . . . . . . . . Leg 7 | . . . . . . . . . . . . . . . . . 7 . . . . . . . . . . . . Wheel . | . . . . . . . . . . . . . . . . . . . . . . . . . . . . . . Hover 13 | . . . . . . . . . . . . . . . . . . . . . . . 9 2 1 1 . . . Flight 17 | . . . . . . . . . 7 . 4 . 2 . 3 . 1 . . . . . . . . . . . . Utility 79 | 2 1 . 4 1 5 2 10 1 6 . 4 . 1 2 . 4 2 3 1 . . 5 13 1 . 2 3 6 . Device 31 | 1 . . . . 1 1 5 . 3 . 3 . 1 1 . 1 1 . 1 . . 3 5 1 . 1 1 1 . Storage 16 | 1 1 . 1 . 1 . 2 . 1 . . . . . . . 1 . . . . 1 2 . . . 2 3 . Processor 4 | . . . . . . . 1 . 1 . . . . 1 . . . . . . . . 1 . . . . . . Hackware 13 | . . . 1 . . . . . 1 . 1 . . . . 3 . . . . . . 5 . . . . 2 . Protection 14 | . . . 2 1 3 1 2 1 . . . . . . . . . 3 . . . 1 . . . . . . . Artifact 1 | . . . . . . . . . . . . . . . . . . . . . . . . . . 1 . . . Weapon 53 | 2 3 . 4 1 5 1 6 . 4 1 1 1 1 1 1 1 3 3 2 . . . 1 2 3 1 3 2 . Energy Gun 8 | . 1 . . . . . . . . . . . . . . . . . 2 . . . . 1 . 1 2 1 . Energy Cannon 4 | . . . . . . . . . . . . . . . . . 2 . . . . . . . 1 . 1 . . Ballistic Gun 25 | 2 2 . 4 1 4 1 4 . 1 . . . 1 . . 1 . 3 . . . . 1 . . . . . . Ballistic Cannon 2 | . . . . . . . . . 1 . . . . . . . 1 . . . . . . . . . . . . Launcher 6 | . . . . . 1 . 2 . 1 1 . . . . . . . . . . . . . . 1 . . . . Special Weapon 2 | . . . . . . . . . 1 . . . . 1 . . . . . . . . . . . . . . . Impact Weapon 1 | . . . . . . . . . . . . . . . 1 . . . . . . . . . . . . . . Slashing Weapon 3 | . . . . . . . . . . . 1 1 . . . . . . . . . . . . 1 . . . . Piercing Weapon 1 | . . . . . . . . . . . . . . . . . . . . . . . . 1 . . . . . Special Melee Weapon 1 | . . . . . . . . . . . . . . . . . . . . . . . . . . . . 1 . Unidentified Prototypes 16 | . 1 . 2 . 1 . 2 . . 1 1 . . . . 3 . . . . . . 2 . 2 . . 1 . Corrupted Parts 8 | . . . . . . . . . . . . . . . . . . 6 2 . . . . . . . . . . System Corruption 41 | . . . . . . . . . . . . . . . . . . 30 11 . . . . . . . . . . Parts Lost 57 | . . . . 1 14 4 8 1 1 . 3 2 1 2 2 . 3 . . . . 1 1 1 . 9 2 1 . Power 3 | . . . . . 1 . . . . . 1 . 1 . . . . . . . . . . . . . . . . Propulsion 15 | . . . . . 4 1 1 . . . 2 2 . 2 1 . 2 . . . . . . . . . . . . Utility 26 | . . . . . 4 2 3 1 1 . . . . . . . 1 . . . . 1 1 1 . 8 2 1 . Weapon 13 | . . . . 1 5 1 4 . . . . . . . 1 . . . . . . . . . . 1 . . . Highest Loss Streak 14 | . . . . 1 14 2 2 1 1 . 2 2 1 2 1 . 2 . . . . 1 1 1 . 7 2 1 . To Critical Strikes 8 | . . . . . 8 . . . . . . . . . . . . . . . . . . . . . . . . Average Backups 16 | 3 7 11 15 24 21 11 19 22 12 13 12 13 12 11 12 11 14 14 15 15 15 22 18 14 13 13 8 9 9 Power . | . . . . . 2 . 1 . . . . 1 . . . . . 1 1 1 1 1 . . . . 1 1 2 Propulsion 2 | . . 2 4 5 4 1 3 7 . . . . . . . . 2 2 2 2 2 5 4 2 2 1 . . . Utility 6 | . 2 3 3 7 6 6 9 9 8 8 8 7 7 8 9 8 8 8 9 9 9 12 10 8 5 3 . 1 . Weapon 4 | 1 4 6 7 11 7 1 3 2 1 2 2 4 3 2 2 2 1 . 2 2 2 2 2 4 1 1 3 4 5 Tool/Special . | . . . . . . . . . . . . . . . . . . . . . . . . . . . . . . Unused Backups 83 | . 2 . 21 1 11 . 10 1 6 1 4 . 1 . . . 7 4 . . . . 8 . 3 1 . 1 1 Power 9 | . . . . . 3 . 2 . . . . . 1 . . . 1 1 . . . . 1 . . . . . . Propulsion 12 | . . . 1 . . . 1 . 2 . . . . . . . 2 1 . . . . 5 . . . . . . Utility 37 | . 1 . 9 . 2 . 7 1 3 1 4 . . . . . 4 1 . . . . 2 . 1 1 . . . Weapon 23 | . 1 . 11 1 6 . . . . . . . . . . . . 1 . . . . . . 1 . . 1 1 Tool/Special 2 | . . . . . . . . . 1 . . . . . . . . . . . . . . . 1 . . . . Average Slot Usage (%) 90 | . 98 100 98 100 94 79 92 84 89 87 85 84 74 75 85 91 97 77 81 82 73 80 89 93 94 84 64 69 63 Engine 6 | . 14 14 11 11 8 2 8 7 4 . 2 6 4 2 6 5 1 . . . . . . . . . . . . Reactor 1 | . . . . . . . . . . . . . . . . . . 2 5 5 5 5 7 8 8 7 9 9 9 Treads 13 | . 28 28 22 22 21 21 18 15 . . . . . . . . . 9 17 17 15 15 6 . . . . . . Leg 2 | . . . . . . . . . . . . . . . . . 29 7 . . . . . . . . 9 9 9 Hover 1 | . . . . . . . . . . . . . . . . . . . . . . . 14 30 30 28 . . . Flight 5 | . . . . . . . . . 39 40 38 35 31 33 39 35 4 . . . . . . . . . . . . Device 9 | . 14 14 9 . . . 15 15 6 20 19 20 15 12 13 11 10 6 6 5 5 6 11 19 21 15 14 9 9 Storage 9 | . 14 14 11 11 11 11 14 7 6 6 6 6 6 6 6 5 5 5 5 5 5 5 7 8 8 7 14 9 9 Processor 2 | . . . . . . . 1 7 6 6 6 6 6 11 13 5 5 5 5 5 5 5 4 4 4 3 . . . Hackware 4 | . . . . . . . . . 5 . . . . . . 14 17 17 17 17 15 10 11 8 8 7 . 16 18 Protection 8 | . . . 11 22 20 12 8 7 4 . . . . . . . . 3 3 5 5 14 8 4 3 . . . . Energy Gun 1 | . . . . . . . . . . . . . . . . . . . . . . . . . . 2 18 15 . Ballistic Gun 18 | . 26 28 32 33 30 32 21 15 6 6 2 . . . . 4 1 3 16 17 15 15 13 4 1 . . . . Peak Build Rating 233 | 7 11 11 24 24 28 24 43 49 78 66 84 60 77 65 59 88 102 144 144 144 144 163 178 168 187 216 222 233 224 Average Rating 68 | 3 9 11 19 23 23 21 33 47 64 60 62 58 54 55 57 84 97 113 142 144 144 158 159 165 181 202 218 222 223 On Entrance 89 | . 7 11 11 24 24 21 24 43 49 59 62 60 57 49 56 58 88 102 144 144 144 144 161 156 161 187 209 214 224 Naked Turns . | . . . . . . . . . . . . . . . . . . . . . . . . . . . . . . Heaviest Build 153 | 15 32 32 103 103 104 59 112 112 117 34 89 35 35 38 33 37 57 66 66 66 66 141 153 83 81 81 61 65 51 Greatest Support 240 | 40 40 40 43 43 43 40 42 42 41 41 41 36 38 38 40 39 113 240 240 240 240 240 240 86 111 89 70 70 70 Greatest Overweight (x) 9 | . . . 2 2 2 1 4 2 3 . 3 1 1 9 . . 1 . . . . . 1 . 1 . . . . Average Overweight (x) . | . . . . 2 1 1 1 2 1 . . . . . . . . . . . . . . . . . . . . Largest Inventory Capacity 25 | 8 15 15 25 25 25 20 25 25 25 15 15 15 15 15 15 15 15 15 15 15 15 25 25 15 15 15 15 20 15 Average Capacity 19 | 7 10 15 19 25 24 20 22 25 18 15 15 15 15 15 15 15 15 15 15 15 15 24 19 15 15 14 15 15 15 Most Carried 25 | 5 11 12 25 25 25 15 25 25 24 15 15 15 15 15 15 15 15 15 15 15 15 25 25 15 15 15 13 13 9 Average Carried 17 | 3 7 11 16 24 22 13 21 24 13 14 14 14 14 13 14 13 14 14 15 14 15 22 18 14 14 14 9 10 8 Final Capacity 25 | 8 15 15 25 25 20 20 25 25 15 15 15 15 15 15 15 15 15 15 15 15 15 25 25 15 15 15 15 15 15 Final Carried 25 | 3 11 12 25 25 13 13 23 25 15 15 15 15 13 15 15 15 15 15 15 15 15 25 25 15 15 15 11 11 9 Class Distribution -------------------- 34% | Tank 14% | Mutant 8% | Scavenger-Tank 8% | Wizard-Mutant 6% | Skirmisher 6% | Alien-Sigix 4% | Gunner 4% | Scavenger-Sprinter 3% | Wizard-Tank 3% | Hacker-Sprinter Dominant Class ---------------- Mutant | -10/Materials Mutant | -10/Mines Tank | -9/Materials Tank | -9/Mines Tank | -9/Exiles Tank | -8/Mines Tank | -8/Materials Skirmisher | -7/Factory Skirmisher | -6/Factory Sprinter | -6/Waste Sprinter | -6/Factory Mutant | -6/Lower Caves Mutant | -6/Lower Caves Commander-Gladiator | -6/Data Miner Scavenger-Sprinter | -5/Proximity Caves Wizard-Sprinter | -5/Factory Wizard-Mutant | -5/Extension Wizard-Mutant | -5/Cetus Wizard-Tank | -5/Archives Wizard-Tank | -5/Hub_04(d) Wizard-Tank | -4/Factory Scavenger-Tank | -4/DSF Scavenger-Tank | -3/Research Hacker-Sprinter | -2/Research Hacker-Sprinter | -2/Quarantine Hacker-Sprinter | -2/Section 7 Alien-Sigix | -1/Access Alien-Sigix | -1/Command Alien-Sigix | -1/Access_0 Resources | -11 -10 -10 -9 -9 -9 -8 -8 -7 -6 -6 -6 -6 -6 -6 -5 -5 -5 -5 -5 -5 -4 -4 -3 -2 -2 -2 -1 -1 -1 ----------- Run | Yrd Mat Min Mat Min Exi Min Mat Fac Fac Was Fac Low Low Dat Pro Fac Ext Cet Arc Hub Fac DSF Res Res Qua Sec Acc Com Ac0 Matter Collected 7173 | 226 107 71 494 355 277 570 1345 62 611 124 225 . 80 24 81 50 179 145 209 . . 479 798 235 63 176 151 36 . Remotely . | . . . . . . . . . . . . . . . . . . . . . . . . . . . . . . Salvage Created 12251 | 24 107 49 800 494 115 585 2020 102 474 . 367 . 296 24 69 83 584 316 104 . . 937 1367 235 63 173 2000 695 168 Parts 583 | 4 7 6 52 31 3 24 93 13 22 . 29 . 11 5 2 2 9 15 7 . . 29 52 13 2 8 100 34 10 Haulers Intercepted 16 | . 1 . 3 . . . 4 . 1 . . . . . . . 2 . . . . . 5 . . . . . . Recyclers Shooed 5 | 1 . . . . . . . . 1 . . . . . . . 1 . . . . . . . . . 2 . . Parts Field Recycled . | . . . . . . . . . . . . . . . . . . . . . . . . . . . . . . Retrieved Matter . | . . . . . . . . . . . . . . . . . . . . . . . . . . . . . . Parts Self-Destructed 20 | . . . . . . . . . . . . . 13 . 7 . . . . . . . . . . . . . . Prevented 3 | . . . . . . . . . . . . . 1 . 2 . . . . . . . . . . . . . . Kills | -11 -10 -10 -9 -9 -9 -8 -8 -7 -6 -6 -6 -6 -6 -6 -5 -5 -5 -5 -5 -5 -4 -4 -3 -2 -2 -2 -1 -1 -1 ------- Run | Yrd Mat Min Mat Min Exi Min Mat Fac Fac Was Fac Low Low Dat Pro Fac Ext Cet Arc Hub Fac DSF Res Res Qua Sec Acc Com Ac0 Combat Hostiles Destroyed 179 | . 3 3 12 18 3 12 35 5 9 . 12 . 7 . 1 1 1 4 . . . 9 12 3 . 1 25 2 1 Melee 2 | . . . . . . . . . . . . . . . . 1 1 . . . . . . . . . . . . Guns 122 | . 3 3 12 18 1 12 20 1 . . . . . . . . . . . . . 9 12 3 . 1 25 2 . Cannons 30 | . . . . . . . . . 9 . 12 . 7 . . . . 1 . . . . . . . . . . 1 AOE 21 | . . . . . 2 . 15 4 . . . . . . . . . . . . . . . . . . . . . Classes Destroyed 24 | 1 2 . 5 3 . 1 4 . 1 . 1 . . . . . . . . . . 2 . . 1 . 3 . . Worker 9 | . . . 1 1 . . 2 . 1 . 1 . . . . . . . . . . . 1 . . . . 2 . Builder 3 | . . . . . . . 1 . . . . . . . . . 1 . . . . . . . . . 1 . . Tunneler 4 | 1 . . . . . . 2 . . . . . . . . . . . . . . . 1 . . . . . . Hauler 16 | . 1 . 3 . . . 4 . 1 . . . . . . . 2 . . . . . 5 . . . . . . Recycler 12 | . . . . 1 . 1 5 . . . . . . . . . 2 . . . . . . . . 1 1 1 . Mechanic 1 | . . . . . . . 1 . . . . . . . . . . . . . . . . . . . . . . Operator 8 | . . . . . . . 1 . . . . . . . . . . . 3 . . . 1 . . . 1 2 . Watcher 20 | . . . 5 . . . 4 . 3 . 3 . . . . 1 . . . . . . 1 . . . 1 2 . Swarmer 35 | . 3 3 2 7 . 3 3 4 . . 2 . 1 . . . . . . . . . 3 . . . 4 . . Cutter 3 | . . . . . . . . . . . 3 . . . . . . . . . . . . . . . . . . Grunt 61 | . . . 3 5 . 7 22 . 5 . 3 . 3 . 1 1 1 . . . . 4 6 . . . . . . Brawler 4 | . . . . . . 1 . . . . . . 2 . . . . . . . . . 1 . . . . . . Duelist 3 | . . . 1 . . 1 . . 1 . . . . . . . . . . . . . . . . . . . . Protector 1 | . . . . . . . . . . . . . . . . . . . . . . . . . . . 1 . . Researcher 1 | . . . . . . . . . . . . . . . . . . . . . . . . . 1 . . . . Sentry 22 | . . . 6 . . . 8 1 . . 2 . 1 . . . . . . . . . . 1 . . 3 . . Demolisher 2 | . . . . 2 . . . . . . . . . . . . . . . . . . . . . . . . . Specialist 1 | . . . . . . . . . . . . . . . . . . . . . . 1 . . . . . . . Hunter 8 | . . . . . . . 2 . 1 . 1 . . . . . . . . . . 2 1 . . . 1 . . Programmer 13 | . . . . . . . . . 2 . 1 . . . . . . . . . . 1 . 2 . 1 4 2 . Heavy 2 | . . . . . . . . . . . . . . . . . . . . . . 1 . . . . 1 . . Cetus Guard 4 | . . . . . . . . . . . . . . . . . . 4 . . . . . . . . . . . Tracker 6 | . . . . . . . . . . . . . . . . . . . . . . . 1 . . . 5 . . Combat Programmer 2 | . . . . . . . . . . . . . . . . . . . . . . . . . . . 2 . . Striker 3 | . . . . . . . . . . . . . . . . . . . . . . . . . . . 3 . . Executioner 1 | . . . . . . . . . . . . . . . . . . . . . . . . . . . 1 . . Assembled 6 | . . . . 4 2 . . . . . . . . . . . . . . . . . . . . . . . . Best Kill Streak 11 | 1 3 3 3 4 2 4 11 4 4 . 7 . 7 1 1 1 2 3 2 . . 3 8 2 1 1 7 5 1 Combat Bots Only 7 | . 3 3 2 4 2 3 6 4 3 . 5 . 7 . 1 1 1 3 . . . 3 6 2 . 1 6 1 1 Max Kills in Single Turn 2 | 1 1 1 2 2 2 2 2 2 1 . 1 . 1 1 1 1 1 1 1 . . 1 2 1 1 1 2 2 1 Gunslinging 1 | . . . 1 1 . 1 1 . . . . . . . . . . . . . . . 1 . . . 1 . . Exploded 2 | . . . . . 2 . 2 2 . . . . . . . . . . . . . . . . . . . . . Melee 1 | . . . . . . . . . . . . . . . . 1 1 . . . . . . . . . . . . Uniques/NPCs Destroyed 3 | . . . . . 1 . . . . . . . . 1 . . . . . . . . . . . . . . 1 8R-AWN (-9/Exiles) Data Miner (-6/Data Miner) Architect (-1/Access_0) Combat | -11 -10 -10 -9 -9 -9 -8 -8 -7 -6 -6 -6 -6 -6 -6 -5 -5 -5 -5 -5 -5 -4 -4 -3 -2 -2 -2 -1 -1 -1 -------- Run | Yrd Mat Min Mat Min Exi Min Mat Fac Fac Was Fac Low Low Dat Pro Fac Ext Cet Arc Hub Fac DSF Res Res Qua Sec Acc Com Ac0 Hostile Shots Fired 1595 | . 9 12 54 45 109 67 182 26 37 . 91 25 37 11 5 1 23 13 6 . . 57 89 18 2 94 492 79 11 Missed 489 | . . 6 16 16 21 13 44 12 10 . 38 11 13 3 1 1 13 4 2 . . 17 39 8 2 41 117 37 4 Hits 1106 | . 9 6 38 29 88 54 138 14 27 . 53 14 24 8 4 . 10 9 4 . . 40 50 10 . 53 375 42 7 Melee 19 | . . . 4 2 . 3 . . 1 . 3 . 2 . . . . . . . . . . . . . 4 . . Projectile 1087 | . 9 6 34 27 88 51 138 14 26 . 50 14 22 8 4 . 10 9 4 . . 40 50 10 . 53 371 42 7 AOE 1 | . . . . 1 . . . . . . . . . . . . . . . . . . . . . . . . . Critical Strikes 74 | . 2 . 1 . 34 4 5 . . . . . 3 . . . . 1 . . . 4 2 1 . . 15 2 . Actively Blocked 1 | . . . . . 1 . . . . . . . . . . . . . . . . . . . . . . . . Part Disruptions 1 | . . . . . . . . . . . . . . 1 . . . . . . . . . . . . . . . Damage Taken 17242 | . 69 60 591 390 1563 886 2228 144 508 . 757 200 423 366 86 47 157 202 87 . . 803 768 287 . 1345 3890 1309 76 Core 3743 | . 16 15 27 30 195 117 392 16 54 . 94 21 71 95 11 . 28 48 . . . . 66 24 . 634 1210 561 18 Absorbed by Shields 1210 | . . . . . . . . . . . 59 . . . . . 54 72 . . . . . 33 . 220 772 . . Redirected to Shielding 34 | . . . 3 6 25 . . . . . . . . . . . . . . . . . . . . . . . . Ignored by Resistances 5476 | . . . . . . . . . . . . . . . . . . . . . . . . . . 166 4550 681 79 Regen/Repaired (Parts) 266 | . . . . . . . . . . . . . . . . . . . . . . . . . . 266 . . . Core Remaining (%) 65 | 100 . 87 . . . 7 28 97 . . . . . . 59 . . . . 92 . 100 94 . . 51 . . 4 Volleys Fired 657 | 2 7 5 48 33 40 39 132 5 8 . . . . 4 . . 19 10 14 5 . 24 41 21 . 2 149 48 1 Largest 3 | 2 2 2 3 3 3 3 3 2 1 . . . . 1 . . 2 2 3 3 . 3 3 1 . 2 2 2 1 Hottest 300 | 40 46 46 69 69 69 69 78 53 36 . . . . . . . 162 162 105 105 . 105 105 30 . 200 200 300 300 Shots Fired 1546 | 4 14 10 144 99 106 111 263 8 31 . 35 . 15 4 . . 24 16 42 15 . 72 121 21 . 4 295 91 1 Gun 1395 | 4 14 10 144 99 102 111 233 6 5 . . . . . . . 11 . 42 15 . 72 120 21 . 4 295 87 . Cannon 107 | . . . . . . . . . 23 . 35 . 15 . . . 13 16 . . . . . . . . . 4 1 Launcher 38 | . . . . . 4 . 30 2 2 . . . . . . . . . . . . . . . . . . . . Special 6 | . . . . . . . . . 1 . . . . 4 . . . . . . . . 1 . . . . . . Kinetic 1082 | 4 14 10 144 99 102 111 233 6 28 . 35 . 15 . . . 11 . 42 15 . 72 120 21 . . . . . Thermal 6 | . . . . . . . . . 1 . . . . . . . . . . . . . . . . . . 4 1 Explosive 38 | . . . . . 4 . 30 2 2 . . . . . . . . . . . . . . . . . . . . Electromagnetic 29 | . . . . . . . . . . . . . . . . . 13 16 . . . . . . . . . . . Slashing 386 | . . . . . . . . . . . . . . . . . . . . . . . . . . 4 295 87 . Robot Hit Streak 45 | 3 4 4 10 12 32 11 14 20 26 . 10 . 21 25 . . 45 11 8 1 . 7 10 14 . 2 9 17 4 Robot Miss Streak 6 | . 1 2 5 4 2 2 5 . 1 . 1 . . . . . 3 1 6 . . 3 6 2 . 1 6 2 . Penetration Max 1 | . . . . . . . 1 . 1 . . . . . . . . . 1 . . 1 1 . . . 1 1 . Secondary Targets 25 | . 2 1 1 2 . 6 3 . . . . . . . . . . . 1 . . . 4 . . . 5 . . Max Gunslinging Chain 1 | . 1 1 1 1 . 1 1 . . . . . . . . . . . 1 . . . 1 . . . 1 . . Autonomous 73 | . . . . . . . . . 23 . 35 . 15 . . . . . . . . . . . . . . . . Shots Hit Robots 931 | 3 9 6 94 56 90 77 157 6 26 . 30 . 16 5 1 2 31 14 23 1 . 47 68 20 4 5 101 38 1 Core Hits 418 | 1 4 3 33 29 18 25 106 6 13 . 13 . 7 1 . 1 9 5 7 . . 21 40 8 . 2 51 14 1 Critical Kills 17 | . . . . . . . 1 . . . . . . . . . 1 . 1 . . 4 10 . . . . . . Critical Parts Destroyed 24 | . . . . . . 1 2 . . . . . . . 1 . 2 . 4 . . 6 7 . . . . 1 . Critical Strikes 58 | . . . . . . 1 3 . 4 . 4 . 1 . 1 . 3 1 7 . . 11 17 . . . 3 2 . Destroy 41 | . . . . . . 1 3 . . . . . . . . . . . 7 . . 11 17 . . . . 2 . Blast 9 | . . . . . . . . . 4 . 4 . 1 . . . . . . . . . . . . . . . . Corrupt 1 | . . . . . . . . . . . . . . . . . . 1 . . . . . . . . . . . Smash 4 | . . . . . . . . . . . . . . . 1 . 3 . . . . . . . . . . . . Sever 3 | . . . . . . . . . . . . . . . . . . . . . . . . . . . 3 . . Melee Attacks 62 | . . . . . . . . . . . . . 2 3 1 4 10 . . . . . . 3 15 24 . . . Impact 15 | . . . . . . . . . . . . . . . 1 4 10 . . . . . . . . . . . . Slashing 29 | . . . . . . . . . . . . . 2 3 . . . . . . . . . . . 24 . . . Piercing 18 | . . . . . . . . . . . . . . . . . . . . . . . . 3 15 . . . . Sneak Attacks 9 | . . . . . . . . . . . . . . 1 . . 5 . . . . . . . 2 1 . . . Combat Hostiles . | . . . . . . . . . . . . . . . . . . . . . . . . . . . . . . Follow-up Attacks . | . . . . . . . . . . . . . . . . . . . . . . . . . . . . . . Damage Inflicted 36937 | 35 135 95 1492 901 1397 1199 4716 446 1952 . 2537 . 1142 163 47 85 1297 491 717 26 . 1581 2262 963 476 484 7875 4023 400 Guns 24726 | 35 135 95 1492 901 1313 1199 2469 93 61 . . . . . . . 226 . 717 26 . 1581 2262 963 . 122 7813 3223 . Cannons 7344 | . . . . . . . . . 1747 . 2537 . 1098 . . . 271 491 . . . . . . . . . 800 400 Explosions 2860 | . . . . . 84 . 2247 353 114 . . . . . . . . . . . . . . . . . 62 . . Melee 1977 | . . . . . . . . . . . . . 44 163 47 85 800 . . . . . . . 476 362 . . . Ramming 19 | . . . . . . . . . 19 . . . . . . . . . . . . . . . . . . . . Kinetic 18950 | 35 135 95 1492 901 1313 1199 2469 93 1808 . 2537 . 1098 . . . 226 . 717 26 . 1581 2262 963 . . . . . Thermal 1211 | . . . . . . . . . 11 . . . . . . . . . . . . . . . . . . 800 400 Explosive 2860 | . . . . . 84 . 2247 353 114 . . . . . . . . . . . . . . . . . 62 . . Electromagnetic 762 | . . . . . . . . . . . . . . . . . 271 491 . . . . . . . . . . . Impact 932 | . . . . . . . . . . . . . . . 47 85 800 . . . . . . . . . . . . Slashing 11727 | . . . . . . . . . . . . . 44 163 . . . . . . . . . . . 484 7813 3223 . Piercing 476 | . . . . . . . . . . . . . . . . . . . . . . . . . 476 . . . . Highest Corruption 34 | . . . . . . . . . . . . . . . . . . 30 34 34 . . . 1 1 . . . . Average Corruption 22 | . . . . . . . . . . . . . . . . . . 23 25 34 . . . 1 1 . . . . Corruption Purged 7 | . . . . . . . . . . . . . . . . . . . 7 . . . . . . . . . . Corruption Blocked . | . . . . . . . . . . . . . . . . . . . . . . . . . . . . . . Effects 47 | . . . . . . . . . . . . . . . . . . 14 19 13 . . . . 1 . . . . Message Errors 16 | . . . . . . . . . . . . . . . . . . 5 7 3 . . . . 1 . . . . Matter Fused 12 | . . . . . . . . . . . . . . . . . . 3 3 6 . . . . . . . . . Heat Flow Errors 4 | . . . . . . . . . . . . . . . . . . 1 3 . . . . . . . . . . Energy Discharges 6 | . . . . . . . . . . . . . . . . . . 4 1 1 . . . . . . . . . Data Loss (minor) 5 | . . . . . . . . . . . . . . . . . . . 4 1 . . . . . . . . . Data Loss (major) 1 | . . . . . . . . . . . . . . . . . . . 1 . . . . . . . . . . Misfires 1 | . . . . . . . . . . . . . . . . . . . . 1 . . . . . . . . . Alerts 1 | . . . . . . . . . . . . . . . . . . 1 . . . . . . . . . . . Weapon Failures 1 | . . . . . . . . . . . . . . . . . . . . 1 . . . . . . . . . Overload Shots . | . . . . . . . . . . . . . . . . . . . . . . . . . . . . . . Overflow Damage 1487 | . . . . . . . 74 44 275 . 318 . 53 . 47 24 393 . . . . . . . 252 . 7 . . Projectiles 651 | . . . . . . . . . 269 . 318 . 53 . . . 11 . . . . . . . . . . . . Explosions 131 | . . . . . . . 74 44 6 . . . . . . . . . . . . . . . . . 7 . . Melee 705 | . . . . . . . . . . . . . . . 47 24 382 . . . . . . . 252 . . . . Knockbacks 20 | . . . . . . . . . 7 . 11 . . . . . 2 . . . . . . . . . . . . Impact 2 | . . . . . . . . . . . . . . . . . 2 . . . . . . . . . . . . Kinetic 18 | . . . . . . . . . 7 . 11 . . . . . . . . . . . . . . . . . . Secondary . | . . . . . . . . . . . . . . . . . . . . . . . . . . . . . . Self-Inflicted Damage 86 | . . . . . . . 77 . 9 . . . . . . . . . . . . . . . . . . . . Shots 5 | . . . . . . . 5 . . . . . . . . . . . . . . . . . . . . . . Rammed 3 | . . . . . . . . . 3 . . . . . . . . . . . . . . . . . . . . Targets Rammed 3 | . . . . . . . . . 3 . . . . . . . . . . . . . . . . . . . . Kicked . | . . . . . . . . . . . . . . . . . . . . . . . . . . . . . . Crushed . | . . . . . . . . . . . . . . . . . . . . . . . . . . . . . . Highest Temperature 348 | . . . 103 133 115 297 348 14 69 171 216 170 59 . 49 24 136 166 204 42 . 252 7 77 . . . 94 . Average Temperature 59 | . . . 23 34 60 96 99 8 22 73 48 90 33 . 15 8 62 77 62 15 . 110 5 38 . . . 50 . Received Heat Transfer 2804 | . . 12 174 92 . 468 963 18 153 . 48 54 216 . 30 . 49 . . . . 142 78 27 . 83 98 99 . Effects 2 | . . . . . . 1 1 . . . . . . . . . . . . . . . . . . . . . . Energy Bleed 1 | . . . . . . 1 . . . . . . . . . . . . . . . . . . . . . . . Damage (minor) 1 | . . . . . . . 1 . . . . . . . . . . . . . . . . . . . . . . Siege Activations . | . . . . . . . . . . . . . . . . . . . . . . . . . . . . . . Martial Activations . | . . . . . . . . . . . . . . . . . . . . . . . . . . . . . . Shielding Activations . | . . . . . . . . . . . . . . . . . . . . . . . . . . . . . . Robots Disrupted 1 | . . . . . . . . . . . . . . . . . 1 . . . . . . . . . . . . Combat Hostiles 1 | . . . . . . . . . . . . . . . . . 1 . . . . . . . . . . . . Robots Corrupted 7 | . . . . . . . . . . . . . . . 1 . 3 3 . . . . . . . . . . . Combat Hostiles 4 | . . . . . . . . . . . . . . . 1 . . 3 . . . . . . . . . . . Parts Fried 9 | . . . . . . . . . . . . . . . 1 1 4 3 . . . . . . . . . . . Impact Corruptions 12 | . . . . . . . . . . . . . . . 1 1 10 . . . . . . . . . . . . Robots Melted . | . . . . . . . . . . . . . . . . . . . . . . . . . . . . . . Combat Hostiles . | . . . . . . . . . . . . . . . . . . . . . . . . . . . . . . Parts Melted 1 | . . . . . . . . . . . . . . . . . . . . . . 1 . . . . . . . Heat Transferred 37 | . . . . . . . . . 37 . . . . . . . . . . . . . . . . . . . . Parts Sabotaged . | . . . . . . . . . . . . . . . . . . . . . . . . . . . . . . Parts Stolen 2 | . . . . . . . . . . . . . 2 . . . . . . . . . . . . . . . . Parts Stripped . | . . . . . . . . . . . . . . . . . . . . . . . . . . . . . . Power Chain Reactions . | . . . . . . . . . . . . . . . . . . . . . . . . . . . . . . Alert | -11 -10 -10 -9 -9 -9 -8 -8 -7 -6 -6 -6 -6 -6 -6 -5 -5 -5 -5 -5 -5 -4 -4 -3 -2 -2 -2 -1 -1 -1 ------- Run | Yrd Mat Min Mat Min Exi Min Mat Fac Fac Was Fac Low Low Dat Pro Fac Ext Cet Arc Hub Fac DSF Res Res Qua Sec Acc Com Ac0 Maximum Alert Level 5 | . . . . . . . 3 2 . . 1 . . . . 2 2 1 1 1 . 1 1 . . 5 5 5 . Low Security (%) 57 | 100 100 100 100 100 . 100 30 12 100 100 91 . . . . 2 1 . 15 33 100 34 26 100 100 63 . . . Level 1 24 | . . . . . . . 18 72 . . 8 . . . . 75 79 100 84 66 . 65 73 . . 33 . . . Level 2 9 | . . . . . . . 42 14 . . . . . . . 21 18 . . . . . . . . . . . . Level 3 1 | . . . . . . . 8 . . . . . . . . . . . . . . . . . . . 5 . . Level 4 . | . . . . . . . . . . . . . . . . . . . . . . . . . . . 2 . . Level 5 2 | . . . . . . . . . . . . . . . . . . . . . . . . . . . . 100 . High Security . | . . . . . . . . . . . . . . . . . . . . . . . . . . . . . . Max Security 4 | . . . . . . . . . . . . . . . . . . . . . . . . . . 3 91 . . Sterilizations 1 | . . . . . . . . . . . . . . . . . . . . . . 1 . . . . . . . Peak Influence 3546 | 5 60 81 157 110 . 101 767 428 137 35 221 . . . . 418 478 381 296 282 125 376 359 156 128 1633 3546 2419 . Initial 2243 | . . 11 5 60 . . 29 340 79 35 3 . . . . 207 194 230 97 65 125 87 211 155 81 57 1100 2243 . Average 323 | . 11 6 41 23 . 54 370 301 40 20 92 . . . . 333 295 293 233 191 125 248 246 136 106 201 2467 2308 . Influence Increases 11235 | 5 77 96 704 355 . 315 1309 128 284 . 420 90 180 20 460 321 938 331 311 321 . 399 547 119 152 431 2466 456 . Destroy 0b10 Robot/C 4860 | . 60 80 420 280 . 240 700 100 180 . 240 . 140 20 180 140 480 160 80 100 . 200 300 60 20 20 620 40 . Destroy 0b10 Robot/NC 450 | 5 5 . 50 10 . 5 100 . 25 . 20 . . . . 10 50 10 15 5 . 10 55 . . 5 25 45 . Destroy Leader 1050 | . 12 10 146 50 . 40 196 20 48 . 56 . 10 . 20 32 46 . . 32 . 40 66 20 . 10 172 24 . Allied During Kill 1236 | . . 6 54 . . . . . . . . . . . 200 125 293 130 95 137 . 62 27 . . . 104 3 . Successful Hack 73 | . . . 17 . . . 20 . 7 . 10 . . . . . . 7 . . . . . . 12 . . . . Disable Machine 735 | . . . . . . 15 120 . 15 . 15 . . . . . 30 . 105 15 . 15 . . 75 105 180 45 . Destroy Structure 1346 | . . . 2 . . . 128 8 9 . 4 . . . . 14 24 24 16 32 . 42 24 9 15 6 780 209 . Partial Spotted 15 | . . . . . . . . . . . . . . . . . . . . . . . . 15 . . . . . Lose Combat Pursuer 1470 | . . . 15 15 . 15 45 . . . 75 90 30 . 60 . 15 . . . . 30 75 15 30 285 585 90 . Influence Decreases 13271 | 5 47 112 563 506 4 238 637 713 346 97 245 127 198 145 130 253 924 500 366 253 131 148 647 251 193 286 1244 1463 2499 Entered New Map 6716 | . . 19 9 95 4 . 48 409 85 67 2 67 28 125 . 123 204 182 146 123 131 38 165 121 63 46 654 1263 2499 Time Decay 5035 | 5 47 93 494 401 . 198 519 294 261 30 203 40 160 20 110 90 470 278 180 110 . . 452 80 130 150 30 190 . Lost Part 390 | . . . . 10 . 40 70 10 . . 30 20 10 . 20 . 30 . . . . 10 10 10 . 90 20 10 . Lost Ally 1130 | . . . 60 . . . . . . . 10 . . . . 40 220 40 40 20 . 100 20 40 . . 540 . . Squads Dispatched 111 | . 1 . 1 . . . 7 . 3 . 6 . 1 . . 1 1 . . 3 . 2 15 1 3 8 54 4 . Investigation 10 | . 1 . . . . . 2 . . . 1 . . . . 1 1 . . . . . 4 . . . . . . Extermination 6 | . . . . . . . . . 1 . 2 . . . . . . . . . . . . . 1 1 . 1 . Reinforcement 26 | . . . 1 . . . 3 . 2 . 3 . . . . . . . . 1 . 2 7 1 1 1 4 . . Assault 55 | . . . . . . . 2 . . . . . 1 . . . . . . . . . . . . 6 43 3 . Garrison 2 | . . . . . . . . . . . . . . . . . . . . 2 . . . . . . . . . Intercept 12 | . . . . . . . . . . . . . . . . . . . . . . . 4 . 1 . 7 . . Searches Triggered . | . . . . . . . . . . . . . . . . . . . . . . . . . . . . . . Construction Impeded 2 | . . . . . . . 1 . 1 . . . . . . . . . . . . . . . . . . . . Haulers Reinforced 5 | . . . . . . . . . 1 . . . . . . . . . . . . . 4 . . . . . . Active Scanning Responses . | . . . . . . . . . . . . . . . . . . . . . . . . . . . . . . Cargo Convoy Interrupts . | . . . . . . . . . . . . . . . . . . . . . . . . . . . . . . Stealth | -11 -10 -10 -9 -9 -9 -8 -8 -7 -6 -6 -6 -6 -6 -6 -5 -5 -5 -5 -5 -5 -4 -4 -3 -2 -2 -2 -1 -1 -1 --------- Run | Yrd Mat Min Mat Min Exi Min Mat Fac Fac Was Fac Low Low Dat Pro Fac Ext Cet Arc Hub Fac DSF Res Res Qua Sec Acc Com Ac0 Distress Signals 31 | . . . 1 . . . 7 . . . . . . . . . 3 2 . 5 . . 7 . . 2 4 . . Communications Jammed . | . . . . . . . . . . . . . . . . . . . . . . . . . . . . . . Distress Signals . | . . . . . . . . . . . . . . . . . . . . . . . . . . . . . . Times Spotted 471 | . 3 3 30 18 7 12 57 5 13 . 28 7 11 4 10 6 23 10 11 2 . 12 23 6 4 52 92 18 4 Peak Tracking Total 22 | . 1 1 4 4 9 3 7 4 3 . 5 7 7 4 5 3 4 5 1 2 . 4 5 4 3 22 14 7 4 Tactical Retreats 42 | . . . 1 1 . 1 2 . . . 2 2 1 . 1 . 1 . . . . 2 4 1 1 3 17 2 . Traps | -11 -10 -10 -9 -9 -9 -8 -8 -7 -6 -6 -6 -6 -6 -6 -5 -5 -5 -5 -5 -5 -4 -4 -3 -2 -2 -2 -1 -1 -1 ------- Run | Yrd Mat Min Mat Min Exi Min Mat Fac Fac Was Fac Low Low Dat Pro Fac Ext Cet Arc Hub Fac DSF Res Res Qua Sec Acc Com Ac0 Traps Triggered 15 | . 1 . . 1 . . 2 . 2 . 3 . . . . . 3 . . . . . 1 1 . . 1 . . Indirectly . | . . . . . . . . . . . . . . . . . . . . . . . . . . . . . . Trap Hack Attempts . | . . . . . . . . . . . . . . . . . . . . . . . . . . . . . . Triggered . | . . . . . . . . . . . . . . . . . . . . . . . . . . . . . . Disarmed . | . . . . . . . . . . . . . . . . . . . . . . . . . . . . . . Reprogrammed 15 | . . . . . . . . . . . . . . . . 15 . . . . . . . . . . . . . Reused . | . . . . . . . . . . . . . . . . . . . . . . . . . . . . . . Traps Extracted . | . . . . . . . . . . . . . . . . . . . . . . . . . . . . . . Installed . | . . . . . . . . . . . . . . . . . . . . . . . . . . . . . . Triggered . | . . . . . . . . . . . . . . . . . . . . . . . . . . . . . . Machines | -11 -10 -10 -9 -9 -9 -8 -8 -7 -6 -6 -6 -6 -6 -6 -5 -5 -5 -5 -5 -5 -4 -4 -3 -2 -2 -2 -1 -1 -1 ---------- Run | Yrd Mat Min Mat Min Exi Min Mat Fac Fac Was Fac Low Low Dat Pro Fac Ext Cet Arc Hub Fac DSF Res Res Qua Sec Acc Com Ac0 Machines Disabled 53 | . . . . . 3 1 8 . 1 . 1 . . . . . 2 . 7 1 . 2 . . 5 7 12 3 . Max in Single Turn 2 | . . . . . 1 1 1 . 1 . 1 . . . . . . . 1 1 . 1 . . 1 1 2 1 . Garrison Access 2 | . . . . . . . . . . . 1 . . . . . . . . . . . 1 . . . . . . Energy Cycler 1 | . . . . . . . . . . . . . . . . . . . . . . . . . . . 1 . . Machines Repaired . | . . . . . . . . . . . . . . . . . . . . . . . . . . . . . . Machines Dismantled . | . . . . . . . . . . . . . . . . . . . . . . . . . . . . . . Machines Sabotaged . | . . . . . . . . . . . . . . . . . . . . . . . . . . . . . . Overloaded Fab Kills . | . . . . . . . . . . . . . . . . . . . . . . . . . . . . . . Hacking | -11 -10 -10 -9 -9 -9 -8 -8 -7 -6 -6 -6 -6 -6 -6 -5 -5 -5 -5 -5 -5 -4 -4 -3 -2 -2 -2 -1 -1 -1 --------- Run | Yrd Mat Min Mat Min Exi Min Mat Fac Fac Was Fac Low Low Dat Pro Fac Ext Cet Arc Hub Fac DSF Res Res Qua Sec Acc Com Ac0 Machines Accessed 73 | . . 1 8 1 2 . 10 . 3 . 6 . . 4 . 5 7 1 . 3 1 . 7 4 3 5 . 2 . Terminals 51 | . . 1 8 . . . 7 . 1 . 2 . . . . 3 7 1 . 3 1 . 4 3 3 5 . 2 . Fabricators 3 | . . . . . . . . . 1 . . . . . . 1 . . . . . . 1 . . . . . . Repair Stations 2 | . . . . . . . 1 . . . 1 . . . . . . . . . . . . . . . . . . Recycling Units 7 | . . . . . . . 1 . 1 . 2 . . . . 1 . . . . . . 1 1 . . . . . Scanalyzers . | . . . . . . . . . . . . . . . . . . . . . . . . . . . . . . Garrison Access 3 | . . . . . . . 1 . . . 1 . . . . . . . . . . . 1 . . . . . . Total Hacks 221 | . . 2 22 1 2 . 19 . 6 . 11 . . 26 . 41 20 2 . 13 1 . 32 8 4 8 . 3 . Successful 106 | . . 1 10 1 2 . 11 . 3 . 4 . . 26 . 15 7 1 . . 1 . 15 2 2 5 . . . Failed 115 | . . 1 12 . . . 8 . 3 . 7 . . . . 26 13 1 . 13 . . 17 6 2 3 . 3 . Catastrophic 23 | . . 1 1 . . . 2 . . . 1 . . . . 3 2 1 . 8 . . 1 2 . . . 1 . Database Lockouts . | . . . . . . . . . . . . . . . . . . . . . . . . . . . . . . Manual 91 | . . 1 22 . 1 . 14 . 2 . 4 . . . . 27 2 1 . 5 . . 5 5 2 . . . . Terminals 145 | . . 2 22 . . . 14 . 3 . 4 . . . . 34 20 2 . 13 1 . 9 6 4 8 . 3 . Fabricators 18 | . . . . . . . . . 1 . . . . . . 3 . . . . . . 14 . . . . . . Repair Stations 3 | . . . . . . . 1 . . . 2 . . . . . . . . . . . . . . . . . . Recycling Units 19 | . . . . . . . 2 . 2 . 4 . . . . 4 . . . . . . 5 2 . . . . . Scanalyzers . | . . . . . . . . . . . . . . . . . . . . . . . . . . . . . . Garrison Access 7 | . . . . . . . 2 . . . 1 . . . . . . . . . . . 4 . . . . . . Terminal Hacks 64 | . . 1 1 1 2 . . . 1 . 1 . . 26 . 12 7 1 . . 1 . 2 1 2 5 . . . Record 12 | . . . . . 1 . . . . . . . . 11 . . . . . . . . . . . . . . . Part Schematic 9 | . . . . . . . . . . . . . . 8 . . 1 . . . . . . . . . . . . Robot Schematic 4 | . . . . . . . . . . . . . . 4 . . . . . . . . . . . . . . . Prototype ID Bank 4 | . . . . . . . . . . . . . . 3 . . 1 . . . . . . . . . . . . Open Door 11 | . . . . 1 . . . . . . . . . . . . 5 1 . . . . . . . 4 . . . Open DSF 1 | . . . . . . . . . . . . . . . . . . . . . 1 . . . . . . . . Level Access Points 2 | . . . . . . . . . . . . . . . . 1 . . . . . . . . 1 . . . . Branch Access Points 3 | . . . . . . . . . . . 1 . . . . 1 . . . . . . . 1 . . . . . Emergency Access Points 1 | . . . . . . . . . . . . . . . . . . . . . . . . . 1 . . . . Machine Index 1 | . . . . . . . . . . . . . . . . 1 . . . . . . . . . . . . . Alert Level 1 | . . . . . . . . . . . . . . . . 1 . . . . . . . . . . . . . Locate Traps 1 | . . . . . . . . . . . . . . . . 1 . . . . . . . . . . . . . Reprogram Traps 3 | . . . . . . . . . . . . . . . . 3 . . . . . . . . . . . . . Security Status 1 | . . . . . . . . . . . . . . . . 1 . . . . . . . . . . . . . Hauler Manifests 1 | . . . 1 . . . . . . . . . . . . . . . . . . . . . . . . . . Registered Components 2 | . . . . . . . . . . . . . . . . 1 . . . . . . 1 . . . . . . Registered Prototypes 1 | . . . . . . . . . . . . . . . . 1 . . . . . . . . . . . . . Zone Layout 4 | . . 1 . . . . . . 1 . . . . . . 1 . . . . . . 1 . . . . . . Proto ID Catalog 1 | . . . . . 1 . . . . . . . . . . . . . . . . . . . . . . . . Activate Exoskeleton 1 | . . . . . . . . . . . . . . . . . . . . . . . . . . 1 . . . Fabricator Hacks 11 | . . . . . . . . . . . . . . . . 2 . . . . . . 9 . . . . . . Load Schematic 6 | . . . . . . . . . . . . . . . . 1 . . . . . . 5 . . . . . . Build 5 | . . . . . . . . . . . . . . . . 1 . . . . . . 4 . . . . . . Repair Station Hacks 2 | . . . . . . . 1 . . . 1 . . . . . . . . . . . . . . . . . . Scan Component 1 | . . . . . . . . . . . 1 . . . . . . . . . . . . . . . . . . Refit 1 | . . . . . . . 1 . . . . . . . . . . . . . . . . . . . . . . Recycling Unit Hacks 6 | . . . . . . . . . 1 . 1 . . . . 1 . . . . . . 2 1 . . . . . Retrieve Components 6 | . . . . . . . . . 1 . 1 . . . . 1 . . . . . . 2 1 . . . . . Scanalyzer . | . . . . . . . . . . . . . . . . . . . . . . . . . . . . . . Garrison Access Hacks 3 | . . . . . . . 1 . . . 1 . . . . . . . . . . . 1 . . . . . . Unlock Access 1 | . . . . . . . 1 . . . . . . . . . . . . . . . . . . . . . . Seal Access 2 | . . . . . . . . . . . 1 . . . . . . . . . . . 1 . . . . . . Unauthorized Hacks 20 | . . . 9 . . . 9 . 1 . . . . . . . . . . . . . 1 . . . . . . Terminals 19 | . . . 9 . . . 9 . 1 . . . . . . . . . . . . . . . . . . . . Botnet 3 | . . . 1 . . . 2 . . . . . . . . . . . . . . . . . . . . . . Skim 16 | . . . 8 . . . 7 . 1 . . . . . . . . . . . . . . . . . . . . Fabricators 1 | . . . . . . . . . . . . . . . . . . . . . . . 1 . . . . . . Prioritize 1 | . . . . . . . . . . . . . . . . . . . . . . . 1 . . . . . . Repair Stations . | . . . . . . . . . . . . . . . . . . . . . . . . . . . . . . Recycling Units . | . . . . . . . . . . . . . . . . . . . . . . . . . . . . . . Scanalyzers . | . . . . . . . . . . . . . . . . . . . . . . . . . . . . . . Garrison Access . | . . . . . . . . . . . . . . . . . . . . . . . . . . . . . . Data Cores Recovered 3 | . . . . . . . . . . . . . . . . . . . . . . . . . . . . 3 . Used . | . . . . . . . . . . . . . . . . . . . . . . . . . . . . . . Hacking Detections 47 | . . 1 7 . . . 6 . 3 . 5 . . . . 4 2 . . 3 . . 7 4 3 . . 2 . Full Trace Events 3 | . . . . . . . . . . . 1 . . . . 1 . . . . . . 1 . . . . . . Feedback Events 1 | . . . . . . . . . . . . . . . . . . . . . . . 1 . . . . . . Hackware Fried 1 | . . . . . . . . . . . . . . . . . . . . . . . 1 . . . . . . Feedback Blocked . | . . . . . . . . . . . . . . . . . . . . . . . . . . . . . . Robot Schematics Acquired 6 | . . . . . . . . . . . . . . 4 . . . . . . . . . . 2 . . . . Robots Built . | . . . . . . . . . . . . . . . . . . . . . . . . . . . . . . Authchips . | . . . . . . . . . . . . . . . . . . . . . . . . . . . . . . Time . | . . . . . . . . . . . . . . . . . . . . . . . . . . . . . . Total Robot Build Rating . | . . . . . . . . . . . . . . . . . . . . . . . . . . . . . . Part Schematics Acquired 13 | . . . . . . . . . . . . . . 8 . . 1 . . . . . . . 4 . . . . Parts Built 5 | . . . . . . . . . . . . . . . . 1 . . . . . . 4 . . . . . . Authchips 4 | . . . . . . . . . . . . . . . . . . . . . . . 4 . . . . . . Time 224 | . . . . . . . . . . . . . . . . 84 . . . . . . 140 . . . . . . Total Part Build Rating 30 | . . . . . . . . . . . . . . . . 6 . . . . . . 24 . . . . . . Parts Repaired . | . . . . . . . . . . . . . . . . . . . . . . . . . . . . . . Time . | . . . . . . . . . . . . . . . . . . . . . . . . . . . . . . Parts Recycled . | . . . . . . . . . . . . . . . . . . . . . . . . . . . . . . Recycled Matter . | . . . . . . . . . . . . . . . . . . . . . . . . . . . . . . Retrieved Matter . | . . . . . . . . . . . . . . . . . . . . . . . . . . . . . . Retrieved Components 17 | . . . . . . . . . . . . . . . . 3 . . . . . . 14 . . . . . . Parts Scanalyzed . | . . . . . . . . . . . . . . . . . . . . . . . . . . . . . . Part Schematics Acquired . | . . . . . . . . . . . . . . . . . . . . . . . . . . . . . . Parts Damaged . | . . . . . . . . . . . . . . . . . . . . . . . . . . . . . . Bothacking | -11 -10 -10 -9 -9 -9 -8 -8 -7 -6 -6 -6 -6 -6 -6 -5 -5 -5 -5 -5 -5 -4 -4 -3 -2 -2 -2 -1 -1 -1 ------------ Run | Yrd Mat Min Mat Min Exi Min Mat Fac Fac Was Fac Low Low Dat Pro Fac Ext Cet Arc Hub Fac DSF Res Res Qua Sec Acc Com Ac0 Used RIF Installer . | . . . . . . . . . . . . . . . . . . . . . . . . . . . . . . Robots Hacked . | . . . . . . . . . . . . . . . . . . . . . . . . . . . . . . Non-combat . | . . . . . . . . . . . . . . . . . . . . . . . . . . . . . . Combat . | . . . . . . . . . . . . . . . . . . . . . . . . . . . . . . Robot Hacks Applied . | . . . . . . . . . . . . . . . . . . . . . . . . . . . . . . Relay Couplers Released . | . . . . . . . . . . . . . . . . . . . . . . . . . . . . . . Fabnet Peak Effective % . | . . . . . . . . . . . . . . . . . . . . . . . . . . . . . . Robots Rewired 10 | . . . . . . . . . . . . . . . . . 10 . . . . . . . . . . . . Allies Hacked 2 | . . . . . . . . . . . . . . . . . . . . . . . 1 1 . . . . . Hacks Repelled . | . . . . . . . . . . . . . . . . . . . . . . . . . . . . . . Allies | -11 -10 -10 -9 -9 -9 -8 -8 -7 -6 -6 -6 -6 -6 -6 -5 -5 -5 -5 -5 -5 -4 -4 -3 -2 -2 -2 -1 -1 -1 -------- Run | Yrd Mat Min Mat Min Exi Min Mat Fac Fac Was Fac Low Low Dat Pro Fac Ext Cet Arc Hub Fac DSF Res Res Qua Sec Acc Com Ac0 Total Allies 121 | . . 5 . . . . . . . . . . . 4 . . 17 5 . . . . 2 1 . . 51 36 . Largest Group 10 | . . 5 5 . . . . . . . . . . 4 4 4 9 10 9 6 5 5 1 2 . . 9 3 . Highest-Rated Group 755 | . . 81 81 . . . . . . . . . . 377 377 377 411 755 708 511 480 480 160 224 . . 131 45 . Highest-Rated Ally 160 | . . 31 31 . . . . . . . . . . 96 96 96 159 159 143 96 96 96 160 160 . . 15 15 . Initial Warlord ECA Mod 54 | . . . . . . . . . . . . . . . . . . . . . . . 9 8 8 8 7 7 7 Total Orders 3 | . . . . . . . . . . . 3 . . . . . . . . . . . . . . . . . . EXPLORE 2 | . . . . . . . . . . . 2 . . . . . . . . . . . . . . . . . . RETURN 1 | . . . . . . . . . . . 1 . . . . . . . . . . . . . . . . . . Ally Attacks 511 | . . 4 43 . . . . . . . . . . 8 14 28 153 44 17 38 . 25 10 3 . . 119 5 . Total Damage 13084 | . . 62 494 . . . . . . . . . . 217 918 1109 3437 1260 557 1590 . 759 710 109 . . 1727 135 . Kills 86 | . . 1 10 . . . . . . . . . . . 8 7 30 6 4 6 . 1 5 . . . 7 1 . Allies Corrupted 2 | . . . . . . . . . . . . . . . . . . . . . . . 1 . . . 1 . . Allies Melted . | . . . . . . . . . . . . . . . . . . . . . . . . . . . . . . Field Lobotomies 5 | . . . . . . . . . . . . . . 4 . . . . . . . . 1 . . . . . . Intel | -11 -10 -10 -9 -9 -9 -8 -8 -7 -6 -6 -6 -6 -6 -6 -5 -5 -5 -5 -5 -5 -4 -4 -3 -2 -2 -2 -1 -1 -1 ------- Run | Yrd Mat Min Mat Min Exi Min Mat Fac Fac Was Fac Low Low Dat Pro Fac Ext Cet Arc Hub Fac DSF Res Res Qua Sec Acc Com Ac0 Active Infowar (turns) 12790 | 15 315 1041 1896 . . . 2284 638 628 74 531 91 229 76 227 187 1181 613 362 226 10 344 1122 160 248 292 . . . Sensors 7226 | . . . . . . . 1 624 628 74 531 91 229 76 227 187 1181 613 362 226 10 344 1122 160 248 292 . . . Structural 2298 | . . . . . . . 2284 14 . . . . . . . . . . . . . . . . . . . . . Seismic 3267 | 15 315 1041 1896 . . . . . . . . . . . . . . . . . . . . . . . . . . Cloaking 13 | . . . . . . . . . . . . . 2 . . . . . . . . . 2 . 9 . . . . Jamming 138 | . . . . . . . . . . . 67 . . . . . 71 . . . . . . . . . . . . Robot Analysis Total 151 | . . . . . . . . . . . . . . 151 . . . . . . . . . . . . . . . Derelict Logs Recovered 6 | . . 1 . 2 . . . . . . . 1 2 . . . . . . . . . . . . . . . . Drone Launches 3 | . . . . . . . . . . . 3 . . . . . . . . . . . . . . . . . . Drone Recoveries 1 | . . . . . . . . . . . 1 . . . . . . . . . . . . . . . . . . Exploration | -11 -10 -10 -9 -9 -9 -8 -8 -7 -6 -6 -6 -6 -6 -6 -5 -5 -5 -5 -5 -5 -4 -4 -3 -2 -2 -2 -1 -1 -1 ------------- Run | Yrd Mat Min Mat Min Exi Min Mat Fac Fac Was Fac Low Low Dat Pro Fac Ext Cet Arc Hub Fac DSF Res Res Qua Sec Acc Com Ac0 Turns Passed 19925 | 135 315 1041 2258 2038 1607 509 2865 641 923 74 639 91 321 213 227 187 1181 613 362 226 10 344 1122 160 260 314 825 418 6 Spaces Moved 13660 | 75 164 627 979 601 465 152 845 196 649 254 997 292 467 133 254 260 788 330 110 108 7 152 1086 355 630 724 1296 657 7 Core 14 | 13 . . . . . . . . . . . . . 1 . . . . . . . . . . . . . . . Treads 4959 | 62 164 627 979 601 465 152 845 196 . . . . . . . . . 242 110 108 7 152 249 . . . . . . Legs 2790 | . . . . . . . . . . . . . . . . . 731 88 . . . . . . . 11 1296 657 7 Wheels . | . . . . . . . . . . . . . . . . . . . . . . . . . . . . . . Hover 2285 | . . . . . . . . . . . . . . . . . . . . . . . 837 355 630 463 . . . Flight 3362 | . . . . . . . . . 649 254 997 292 467 132 254 260 57 . . . . . . . . . . . . Fastest Speed 15 | 50 160 160 160 320 240 240 232 317 20 20 17 20 20 20 20 20 20 115 160 160 160 160 28 26 15 26 30 30 30 Average Speed 114 | 140 160 160 202 320 308 240 274 317 109 20 29 28 50 45 20 20 116 148 160 160 160 160 71 26 26 26 30 30 30 Slowest Speed 500 | 160 160 160 320 320 320 240 465 317 227 20 227 86 86 500 26 20 190 160 160 160 160 160 160 26 81 30 30 30 30 Overloaded Moves 74 | . . . . . . . . . . . 5 11 43 . . . . . . . . . . . 15 . . . . Propulsion Burnouts . | . . . . . . . . . . . . . . . . . . . . . . . . . . . . . . Robots Hopped 12 | . . . . . . . . . 1 . 7 . 4 . . . . . . . . . . . . . . . . Potential Cave-ins 111 | . . . . . . . . . . . . . . . . . . . . . . . . . . . 73 38 . Cave-ins Triggered 3 | . . . . . . . . . . . . . . . . . . . . . . . . . . . 1 2 . Teleports 3 | . . . . . . . . . . . . . . . . . . . . . . . . . . 1 . 1 1 Microwarps 14 | . . . . . . . . . . . . . . . . . . . . . . . . . . 14 . . . Exploration Rate (%) 47 | 4 30 95 82 75 69 30 74 6 15 95 34 50 71 80 40 7 86 70 77 12 1 95 34 11 49 51 40 31 1 Regions Visited 29 Branch Regions 16 Pre-discovered Areas 34 | . . 1 1 . 1 . 1 . . . . . 1 29 . . . . . . . . . . . . . . . Known Exits Taken 19 | . . . 1 . . 1 1 1 . . 1 1 1 1 1 1 1 1 1 1 1 . 1 1 1 1 . . . Unknown Exits Taken 7 | 1 1 1 . 1 1 . . . . . . . . . . . . . . . . . . . . . 1 1 . Scrap Searched 6 | . . 2 . 1 . . . . . . . 1 1 . 1 . . . . . . . . . . . . . . Spaces Dug 257 | . . . . . . . . . . . . . . . . 2 . . . 5 . . 2 3 5 1 171 68 . Terrain Destroyed 765 | . . . . . 16 . 162 7 8 . 4 . 2 . . 2 . . 7 6 . 1 5 3 5 1 421 115 . Melee 11 | . . . . . . . . . . . . . . . . 2 . . . . . . . 3 5 1 . . . Projectile 475 | . . . . . . . 2 . 2 . 4 . 2 . . . . . 7 6 . 1 4 . . . 332 115 . AOE 278 | . . . . . 16 . 160 7 6 . . . . . . . . . . . . . . . . . 89 . . Terrain Rammed . | . . . . . . . . . . . . . . . . . . . . . . . . . . . . . . Walls Destroyed . | . . . . . . . . . . . . . . . . . . . . . . . . . . . . . . Machines Disabled . | . . . . . . . . . . . . . . . . . . . . . . . . . . . . . . Actions | -11 -10 -10 -9 -9 -9 -8 -8 -7 -6 -6 -6 -6 -6 -6 -5 -5 -5 -5 -5 -5 -4 -4 -3 -2 -2 -2 -1 -1 -1 --------- Run | Yrd Mat Min Mat Min Exi Min Mat Fac Fac Was Fac Low Low Dat Pro Fac Ext Cet Arc Hub Fac DSF Res Res Qua Sec Acc Com Ac0 Total 16818 | 100 206 655 1166 645 559 211 1208 211 861 277 1334 300 550 276 425 388 1012 445 262 151 6 198 1340 415 694 608 1496 810 9 Wait 1701 | 6 13 23 55 3 12 11 120 . 119 15 255 2 52 109 164 109 82 66 132 37 . . 136 18 15 47 32 67 1 Move 13369 | 74 163 626 978 600 464 151 844 195 647 253 982 291 458 132 253 259 787 329 109 107 6 151 1085 354 629 488 1294 654 6 Hop 12 | . . . . . . . . . 1 . 7 . 4 . . . . . . . . . . . . . . . . Pick Up 290 | 10 12 1 40 3 12 5 44 5 12 3 17 3 11 10 2 6 12 11 . 1 . 13 19 3 9 13 6 7 . Fast Attach 63 | . 1 . 3 . . . 4 . 4 1 5 1 3 . 2 2 11 2 2 . . 2 3 2 4 11 . . . Attach 151 | 7 1 . 2 1 13 5 13 1 12 1 15 . 3 7 2 3 2 4 . . . 2 18 3 5 6 7 17 1 Detach 46 | . 1 . . . 1 . 1 . 5 1 7 . 3 5 . . 1 . . . . . 3 1 1 2 4 10 . Swap 93 | 1 2 . 7 2 3 . 18 2 8 . 5 . . . 1 . 4 5 4 . . 3 12 5 4 4 2 1 . Drop 265 | . 6 . 33 3 14 . 32 3 24 3 20 3 14 6 . 5 20 18 1 1 . 3 23 5 12 11 1 4 . Fire 657 | 2 7 5 48 33 40 39 132 5 8 . . . . 4 . . 19 10 14 5 . 24 41 21 . 2 149 48 1 Melee 62 | . . . . . . . . . . . . . 2 3 1 4 10 . . . . . . 3 15 24 . . . Ram 3 | . . . . . . . . . 3 . . . . . . . . . . . . . . . . . . . . Kick . | . . . . . . . . . . . . . . . . . . . . . . . . . . . . . . Crush . | . . . . . . . . . . . . . . . . . . . . . . . . . . . . . . Escape Stasis 52 | . . . . . . . . . 18 . 19 . . . . . 12 . . . . . . . . . 1 2 . Rewire 52 | . . . . . . . . . . . . . . . . . 52 . . . . . . . . . . . . Trap . | . . . . . . . . . . . . . . . . . . . . . . . . . . . . . . Miscellaneous 2 | . . . . . . . . . . . 2 . . . . . . . . . . . . . . . . . . Route ------- -11/Scrapyard -10/Materials -10/Mines (discovered 2 exits: *Mat x2) -9/Materials (discovered 4 exits: *Mat x3 / *Min) -9/Mines (discovered 3 exits: *Mat x2 / *Exi) -9/Exiles -8/Mines (discovered 2 exits: *Mat x2) -8/Materials (discovered 5 exits: *Fac x3 / Sto / Gar) -7/Factory (discovered 4 exits: *Fac x3 / Low) -6/Factory -6/Waste -6/Factory (discovered 3 exits: *Fac / *Low x2) -6/Lower Caves -6/Lower Caves -6/Data Miner -5/Proximity Caves -5/Factory (discovered 8 exits: Fac x4 / Upp x2 / *Ext x2) -5/Extension (discovered 2 exits: *Fac / *Cet) -5/Cetus (discovered 2 exits: *Fac / *Arc) -5/Archives (discovered 2 exits: *Fac / *Hub) -5/Hub_04(d) -4/Factory -4/DSF -3/Research -2/Research (discovered 3 exits: *Acc / *Qua x2) -2/Quarantine (discovered 2 exits: *Sec / *Frg) -2/Section 7 -1/Access (discovered 2 exits: [*Sur] / *Com) -1/Command (discovered 2 exits: [Sur] / [*Ac0]) -1/Access_0 Near Former Tau Ceti IV History --------- Turn | Location | Event 21 | -11/Scrapyard | Discovered new exit (range 15) 136 | -11/Scrapyard | Entered Materials 303 | -10/Materials | Build established: Mutant 349 | -10/Materials | Discovered new exit (range 14) 451 | -10/Materials | Entered Mines 452 | -10/Mines | Met a Derelict bent on vengeance 615 | -10/Mines | Discovered new exit (range 13) 650 | -10/Mines | Assisted by bots powering up and referring to "LRC-V3" 803 | -10/Mines | Discovered new exit (range 15) 816 | -10/Mines | Learned location of Storage (-8) 960 | -10/Mines | Learned Materials terminal intel 1492 | -10/Mines | Entered Materials 1492 | -9/Materials | Accompanied by 5 allies 1492 | -9/Materials | Evolved 2 slots: Utility x1, Weapon x1 1493 | -9/Materials | Loaded intel: 12 terminal locations 1497 | -9/Materials | Led the pair of lost Derelicts to an unsafe place 1887 | -9/Materials | Discovered new exit (range 4) 2034 | -9/Materials | Build established: Tank 2450 | -9/Materials | Identified exit to Materials 2488 | -9/Materials | Identified exit to Mines 2488 | -9/Materials | Learned location of 1 exit from Materials 2514 | -9/Materials | Learned Storage trap positions 2529 | -9/Materials | Loaded intel: 12 trap records 2535 | -9/Materials | Learned 4 Recycling zone layouts 2540 | -9/Materials | Learned location of 1 exit from Storage 2584 | -9/Materials | Learned 4 Materials zone layouts 3750 | -9/Materials | Entered Mines 3867 | -9/Mines | Assembled infested the area 4054 | -9/Mines | Met a Derelict who couldn't figure out how to use a Trap Extractor 4164 | -9/Mines | Learned Materials emergency access door positions 4635 | -9/Mines | Learned 2 Materials zone layouts 4769 | -9/Mines | Deemed a non-threat by the Exiles lab entrance 4769 | -9/Mines | Discovered new exit (range 5) 5122 | -9/Mines | Received a Rocket Launcher from a helpful Derelict 5788 | -9/Mines | Entered Exiles 5873 | -9/Exiles | Met 8R-AWN 5921 | -9/Exiles | Met EX-HEX 6068 | -9/Exiles | Met EX-DEC 6119 | -9/Exiles | Learned location of Zion (-7) 6337 | -9/Exiles | Met EX-BIN 6588 | -9/Exiles | Aligned with FarCom system 6591 | -9/Exiles | Given EX-Vault access code 6665 | -9/Exiles | Opened EX-Vault 6692 | -9/Exiles | Found Field Lobotomy Kit 6708 | -9/Exiles | Found Cloak of Protection 6717 | -9/Exiles | Found AWS/Autocannon 6786 | -9/Exiles | Warned to stay clear of 0b10 Research branches 6948 | -9/Exiles | Attacked by the Exiles 7152 | -9/Exiles | Core integrity fell below 50% 7176 | -9/Exiles | Destroyed 8R-AWN 7194 | -9/Exiles | Lost 14 parts (1p4n4u5w) 7366 | -9/Exiles | Discovered new exit (range 14) 7395 | -9/Exiles | Stole three prototypes: Cloak of Protection, AWS/Autocannon, Field Lobotomy Kit 7395 | -9/Exiles | Entered Mines 7818 | -8/Mines | Core integrity fell below 20% 7904 | -8/Mines | Entered Materials 7904 | -8/Materials | Evolved 2 slots: Utility x2 7905 | -8/Materials | Identified exit to Factory 7906 | -8/Materials | Identified exit to Storage 8601 | -8/Materials | Identified exit to Garrison 8622 | -8/Materials | Build established: Mutant 9247 | -8/Materials | Build established: Gunner 9866 | -8/Materials | Build established: Scavenger-Tank 9904 | -8/Materials | Core integrity fell below 50% 10247 | -8/Materials | Learned 4 Factory zone layouts 10304 | -8/Materials | First assault squad dispatched 10321 | -8/Materials | Learned location of 2 exits from Factory 10385 | -8/Materials | Learned 8 Factory zone layouts 10441 | -8/Materials | Learned 2 Lower Caves zone layouts 10526 | -8/Materials | Learned Factory scanalyzer intel 10574 | -8/Materials | Learned Factory emergency access door positions 10614 | -8/Materials | Discovered exit to Factory (range 16) 10769 | -8/Materials | Entered Factory 10769 | -7/Factory | Evolved 2 slots: Propulsion x2 10770 | -7/Factory | Identified exit to Factory 10771 | -7/Factory | Identified exit to Lower Caves 10774 | -7/Factory | Loaded intel: 4 scanalyzer locations 11083 | -7/Factory | Build established: Skirmisher 11410 | -7/Factory | Entered another Factory area 11410 | -6/Factory | Evolved 2 slots: Propulsion x2 11752 | -6/Factory | Discovered new exit (range 7) 11762 | -6/Factory | Identified exit to Factory 12333 | -6/Factory | Sucked down chute 12333 | -6/Factory | Entered Waste 12333 | -6/Waste | The area was eerily silent 12349 | -6/Waste | Found Gamma Bomb Array 12379 | -6/Waste | Discovered new exit (range 16) 12406 | -6/Waste | Identified exit to Factory 12407 | -6/Waste | Entered Factory 12488 | -6/Factory | Build established: Sprinter 13030 | -6/Factory | Identified exit to Lower Caves 13038 | -6/Factory | Discovered exit to Factory (range 6) 13046 | -6/Factory | Entered Lower Caves 13047 | -6/Lower Caves | Identified exit to Lower Caves 13098 | -6/Lower Caves | Spotted B-75 Beast 13103 | -6/Lower Caves | Encountered a Warlord checkpoint 13119 | -6/Lower Caves | Learned location of 2 exits from Factory 13137 | -6/Lower Caves | Entered another Lower Caves area 13191 | -6/Lower Caves | Learned location of Extension (-5) 13267 | -6/Lower Caves | Learned Factory emergency access door positions 13331 | -6/Lower Caves | Attracted the attention of an 0b10 outpost 13406 | -6/Lower Caves | Destroyed 7 combat bots 13417 | -6/Lower Caves | Spotted 83-AEI(f) 13418 | -6/Lower Caves | Encountered a Master Thief 13419 | -6/Lower Caves | Spotted JA-2AZ(f) 13420 | -6/Lower Caves | Encountered a Master Thief 13420 | -6/Lower Caves | Exp. Heat Sink stolen by Master Thief 13430 | -6/Lower Caves | KE Penetrator stolen by Master Thief 13455 | -6/Lower Caves | Discovered new exit (range 15) 13457 | -6/Lower Caves | Identified exit to Data Miner 13458 | -6/Lower Caves | Entered Data Miner 13458 | -6/Data Miner | Discovered new exit (range 6) 13462 | -6/Data Miner | Met Data Miner 13469 | -6/Data Miner | Learned location of Section 7 (-2) 13469 | -6/Data Miner | Acquired the access code to Warlord's prototype stash 13473 | -6/Data Miner | Received God Mode back door access code from Data Miner 13527 | -6/Data Miner | Destroyed Data Miner 13530 | -6/Data Miner | Interfaced with the Data Conduit 13535 | -6/Data Miner | Found Prototype Hackware 13536 | -6/Data Miner | Found Prototype Hackware 13538 | -6/Data Miner | Found Prototype Hackware 13539 | -6/Data Miner | Found Prototype Hackware 13565 | -6/Data Miner | Assimilated Enhanced Grunt with FLK Orb 13568 | -6/Data Miner | Assimilated Enhanced Grunt with FLK Orb 13571 | -6/Data Miner | Assimilated Enhanced Grunt with FLK Orb 13574 | -6/Data Miner | Assimilated Enhanced Grunt with FLK Orb 13634 | -6/Data Miner | Identified exit to Proximity Caves 13671 | -6/Data Miner | Entered Proximity Caves 13671 | -5/Proximity Caves | Accompanied by 4 allies 13855 | -5/Proximity Caves | Discovered exit to Factory (range 5) 13898 | -5/Proximity Caves | Entered Factory 13898 | -5/Factory | Accompanied by 4 allies 13898 | -5/Factory | Evolved 2 slots: Utility x2 13899 | -5/Factory | Identified exit to Extension 13899 | -5/Factory | Identified exit to Factory 13901 | -5/Factory | Loaded intel: 309 machine locations 13910 | -5/Factory | Identified Ghost Barrier 13911 | -5/Factory | Identified Quantum Router 13917 | -5/Factory | Identified System Mapper 13940 | -5/Factory | Identified exit to Upper Caves 14033 | -5/Factory | Fabricated Cld. Gravmag System (x1) 14085 | -5/Factory | Entered Extension 14085 | -5/Extension | Accompanied by 2 allies 14086 | -5/Extension | Loaded intel: 26 machine locations 14211 | -5/Extension | Lost 4 allies 14337 | -5/Extension | Rescued a captive Derelict 14396 | -5/Extension | Rescued A7 14418 | -5/Extension | Build established: Wizard-Mutant 14490 | -5/Extension | Rescued a captive Derelict 14491 | -5/Extension | Rescued a captive Derelict 14636 | -5/Extension | Lost 8 allies 14872 | -5/Extension | Spotted B-75 Beast 14887 | -5/Extension | Allies destroyed B-75 Beast 14890 | -5/Extension | Spotted B-75 Beast 14904 | -5/Extension | Allies destroyed B-75 Beast 14964 | -5/Extension | Rescued a captive Derelict 14967 | -5/Extension | Rescued a captive Derelict 15014 | -5/Extension | Rescued a captive Derelict 15216 | -5/Extension | Discovered exit to Factory (range 10) 15217 | -5/Extension | Discovered new exit (range 6) 15263 | -5/Extension | Identified exit to Cetus 15266 | -5/Extension | Entered Cetus 15266 | -5/Cetus | Accompanied by 6 allies (A7) 15267 | -5/Cetus | Loaded intel: 24 machine locations 15271 | -5/Cetus | Acquired a Cetus Manufacturing Module code from A7 15281 | -5/Cetus | Spotted Cetus Guard 15282 | -5/Cetus | Spotted Cetus Guard 15285 | -5/Cetus | Destroyed Cetus Guard 15285 | -5/Cetus | Spotted Cetus Guard 15296 | -5/Cetus | Destroyed Cetus Guard 15296 | -5/Cetus | Allies destroyed Cetus Guard 15296 | -5/Cetus | Spotted Cetus Guard 15301 | -5/Cetus | Destroyed Cetus Guard 15347 | -5/Cetus | Started Cetus Manufacturing Module 15355 | -5/Cetus | Escorted A7 to Cetus Mainframe 15372 | -5/Cetus | Manufactured an Enhanced Grunt 15397 | -5/Cetus | Manufactured an Enhanced Grunt 15422 | -5/Cetus | Manufactured an Enhanced Grunt 15447 | -5/Cetus | Manufactured an Enhanced Grunt 15472 | -5/Cetus | Manufactured an Enhanced Grunt 15481 | -5/Cetus | Discovered new exit (range 15) 15533 | -5/Cetus | Spotted Cetus Guard 15533 | -5/Cetus | Spotted Cetus Guard 15537 | -5/Cetus | Spotted Cetus Guard 15538 | -5/Cetus | Destroyed Cetus Guard 15540 | -5/Cetus | Spotted Cetus Guard 15544 | -5/Cetus | Allies destroyed Cetus Guard 15549 | -5/Cetus | Allies destroyed Cetus Guard 15551 | -5/Cetus | Allies destroyed Cetus Guard 15562 | -5/Cetus | Discovered exit to Factory (range 15) 15572 | -5/Cetus | Met Revision 17 15587 | -5/Cetus | System corruption reached 10% 15765 | -5/Cetus | System corruption reached 30% 15853 | -5/Cetus | Identified exit to Archives 15879 | -5/Cetus | Entered Archives 15879 | -5/Archives | Accompanied by 9 allies (A7) 15880 | -5/Archives | Loaded intel: 8 machine locations 15884 | -5/Archives | Received a hacking code to weaken MAIN.C 16046 | -5/Archives | Discovered exit to Factory (range 16) 16067 | -5/Archives | Discovered new exit (range 15) 16224 | -5/Archives | Identified exit to Hub_04(d) 16241 | -5/Archives | Entered Hub_04(d) 16241 | -5/Hub_04(d) | Accompanied by 6 allies 16242 | -5/Hub_04(d) | Loaded intel: 100 machine locations 16308 | -5/Hub_04(d) | Garrison activated, responded to threat 16315 | -5/Hub_04(d) | Discovered exit to Factory (range 3) 16339 | -5/Hub_04(d) | Build established: Wizard-Tank 16467 | -5/Hub_04(d) | Entered Factory 16467 | -4/Factory | Accompanied by 5 allies 16467 | -4/Factory | Evolved 2 slots: Utility x2 16468 | -4/Factory | Loaded intel: 229 machine locations 16477 | -4/Factory | Identified exit to DSF 16477 | -4/Factory | Entered DSF 16477 | -4/DSF | Accompanied by 5 allies 16478 | -4/DSF | Loaded intel: 4 machine locations 16507 | -4/DSF | Additional patrols routed to DSF 16520 | -4/DSF | Discovered new exit (range 16) 16571 | -4/DSF | Lost 5 allies 16720 | -4/DSF | Sterilization system engaged 16740 | -4/DSF | Ambient heat levels rising (+10) 16755 | -4/DSF | Ambient heat levels rising (+10) 16770 | -4/DSF | Ambient heat levels rising (+10) 16785 | -4/DSF | Ambient heat levels rising (+10) 16800 | -4/DSF | Ambient heat levels rising (+10) 16809 | -4/DSF | Identified exit to Research 16815 | -4/DSF | Build established: Scavenger-Tank 16815 | -4/DSF | Ambient heat levels rising (+10) 16821 | -4/DSF | Entered Research 16821 | -3/Research | Evolved 2 slots: Power x1, Utility x1 16822 | -3/Research | Loaded intel: 134 machine locations 16917 | -3/Research | Identified Deep Network Scanner 17021 | -3/Research | Revision forces began assault on 0b10 17086 | -3/Research | Met up with Revision 17++ 17334 | -3/Research | Fabricated Cld. Gravmag System (x1) 17366 | -3/Research | Fabricated Cld. Gravmag System (x1) 17395 | -3/Research | Fabricated Cld. Gravmag System (x1) 17425 | -3/Research | Fabricated Cld. Gravmag System (x1) 17428 | -3/Research | System Mapper fried by hacking feedback 17465 | -3/Research | Spotted B-86 Titan 17521 | -3/Research | Research terminal network offline 17559 | -3/Research | Intercept squad dispatched 17571 | -3/Research | Spotted Tracker 17571 | -3/Research | Spotted Tracker 17581 | -3/Research | Destroyed Tracker 17654 | -3/Research | Spotted Combat Programmer 17654 | -3/Research | Assimilated Combat Programmer with FLK Orb 17828 | -3/Research | Intercept squad dispatched 17888 | -3/Research | Found Exp. Phase Shifter 17931 | -3/Research | Discovered new exit (range 12) 17933 | -3/Research | Identified exit to Research 17943 | -3/Research | Entered another Research area 17943 | -2/Research | Accompanied by 1 ally 17943 | -2/Research | Evolved 2 slots: Propulsion x1, Utility x1 17944 | -2/Research | Loaded intel: 133 machine locations 17954 | -2/Research | Found Quantum Capacitor 18070 | -2/Research | Discovered new exit (range 10) 18073 | -2/Research | Identified exit to Access 18089 | -2/Research | Identified exit to Quarantine 18103 | -2/Research | Entered Quarantine 18104 | -2/Quarantine | Loaded intel: 85 machine locations 18112 | -2/Quarantine | Found Alien Energy Cannon 18123 | -2/Quarantine | Found Alien Artifact 18175 | -2/Quarantine | Found Alien Artifact 18176 | -2/Quarantine | Found Alien Artifact 18177 | -2/Quarantine | Found Alien Artifact 18183 | -2/Quarantine | Identified Core Cannon 18188 | -2/Quarantine | Found Alien Artifact 18190 | -2/Quarantine | Found Alien Artifact 18228 | -2/Quarantine | Found Alien Artifact 18240 | -2/Quarantine | Found Alien Artifact 18240 | -2/Quarantine | Identified Core Reset Matrix 18240 | -2/Quarantine | Identified Dimensional Node Initializer 18240 | -2/Quarantine | Identified Transdimensional Reconstructor (x2) 18240 | -2/Quarantine | Identified Hpw. Transdimensional Reconstructor (x2) 18240 | -2/Quarantine | Identified Subatomic Replicator 18240 | -2/Quarantine | Used Core Reset Matrix 18244 | -2/Quarantine | Detected hypermatrix surge 18244 | -2/Quarantine | Sensed 8 artifacts in vicinity 18312 | -2/Quarantine | Found Sigix Broadsword 18335 | -2/Quarantine | Spotted Fortress 18348 | -2/Quarantine | Intercept squad dispatched 18360 | -2/Quarantine | Discovered new exit (range 6) 18360 | -2/Quarantine | Discovered new exit (range 7) 18361 | -2/Quarantine | Identified exit to Section 7 18362 | -2/Quarantine | Identified exit to Protoforge 18363 | -2/Quarantine | Entered Section 7 18364 | -2/Section 7 | Detected hypermatrix surge 18364 | -2/Section 7 | Sensed 21 artifacts in vicinity 18424 | -2/Section 7 | Found Microwarp Drive 18434 | -2/Section 7 | Found Integrated Mediator 18434 | -2/Section 7 | Installed Integrated Mediator, increased core attachment efficiency 18448 | -2/Section 7 | Spotted S7 Guard 18453 | -2/Section 7 | Found Core Membrane 18453 | -2/Section 7 | Installed Core Membrane, gained immunity to corruption 18462 | -2/Section 7 | Spotted S7 Guard 18467 | -2/Section 7 | Found Core Regenerator 18481 | -2/Section 7 | Spotted B-90 Cyclops 18492 | -2/Section 7 | Discovered exit to Access (range 11) 18497 | -2/Section 7 | Initialized slip node 18503 | -2/Section 7 | Spotted Executioner 18503 | -2/Section 7 | Spotted Executioner 18518 | -2/Section 7 | Found Hpw. Transdimensional Reconstructor 18519 | -2/Section 7 | Found Transdimensional Reconstructor 18521 | -2/Section 7 | Found Transdimensional Reconstructor 18538 | -2/Section 7 | Build established: Hacker-Sprinter 18579 | -2/Section 7 | Found Sigix Sheargun 18581 | -2/Section 7 | Found Sigix Sheargun 18585 | -2/Section 7 | Found Sigix Sheargun 18590 | -2/Section 7 | Used Subatomic Replicator to replicate Core Regenerator 18598 | -2/Section 7 | Spotted B-99 Colossus 18620 | -2/Section 7 | Found LRC Inertial Stabilizer 18620 | -2/Section 7 | Installed LRC Inertial Stabilizer, increased mass support (+10) 18641 | -2/Section 7 | Spotted Executioner 18642 | -2/Section 7 | Spotted Executioner 18659 | -2/Section 7 | Integrated with Sigix Exoskeleton 18676 | -2/Section 7 | Warped through subspace to slip node 18677 | -2/Section 7 | Entered Access 18677 | -1/Access | Evolved 2 slots: Utility x2 18682 | -1/Access | Emitted hypermatrix ping 18687 | -1/Access | Assembled emerged from beneath the floor 18690 | -1/Access | Lost 7 parts (7u) 18713 | -1/Access | Found Unknown Device 18714 | -1/Access | Identified Adv. Force Booster 18762 | -1/Access | Assembled emerged from beneath the floor 18781 | -1/Access | Energy Cycler disabled 18788 | -1/Access | Spotted Striker 18806 | -1/Access | Lost 6 allies 18822 | -1/Access | Destroyed Striker 18926 | -1/Access | Build established: Alien-Sigix 18930 | -1/Access | Assembled emerged from beneath the floor 18952 | -1/Access | Assembled emerged from beneath the floor 18994 | -1/Access | Lost 5 allies 19002 | -1/Access | Spotted Executioner 19003 | -1/Access | Assembled emerged from beneath the floor 19016 | -1/Access | Assembled emerged from beneath the floor 19019 | -1/Access | Intercept squad dispatched 19041 | -1/Access | Lost 3 allies 19048 | -1/Access | Discovered new exit (range 17) 19066 | -1/Access | Spotted Tracker 19068 | -1/Access | Spotted Tracker 19085 | -1/Access | Destroyed Tracker 19089 | -1/Access | Sigix Exoskeleton integrity reduced to 80% 19111 | -1/Access | Destroyed Tracker 19129 | -1/Access | Spotted Combat Programmer 19130 | -1/Access | Destroyed Combat Programmer 19151 | -1/Access | Spotted Combat Programmer 19175 | -1/Access | Destroyed Combat Programmer 19222 | -1/Access | Crushed by falling debris 19225 | -1/Access | Spotted Striker 19225 | -1/Access | Spotted Striker 19225 | -1/Access | Spotted Executioner 19230 | -1/Access | Destroyed Striker 19252 | -1/Access | Destroyed Executioner 19252 | -1/Access | Destroyed Striker 19256 | -1/Access | Sigix Exoskeleton integrity reduced to 60% 19416 | -1/Access | Discovered new exit (range 17) 19419 | -1/Access | Spotted B-99 Colossus 19423 | -1/Access | Intercept squad dispatched 19449 | -1/Access | Spotted Tracker 19451 | -1/Access | Spotted Tracker 19452 | -1/Access | Spotted Tracker 19454 | -1/Access | Core integrity fell below 50% 19461 | -1/Access | Destroyed Tracker 19465 | -1/Access | Sigix Exoskeleton integrity reduced to 40% 19471 | -1/Access | Destroyed Tracker 19473 | -1/Access | Spotted Combat Programmer 19475 | -1/Access | Spotted Combat Programmer 19476 | -1/Access | Destroyed Tracker 19486 | -1/Access | Sigix Exoskeleton integrity reduced to 20% 19488 | -1/Access | Assembled emerged from beneath the floor 19502 | -1/Access | Entered Command 19503 | -1/Command | Emitted hypermatrix ping 19505 | -1/Command | Used Core Regenerator, restored core integrity (+400) 19508 | -1/Command | Assembled emerged from beneath the floor 19537 | -1/Command | Assembled emerged from beneath the floor 19562 | -1/Command | Assembled emerged from beneath the floor 19668 | -1/Command | Assembled emerged from beneath the floor 19706 | -1/Command | Assembled emerged from beneath the floor 19752 | -1/Command | First assault squad dispatched 19770 | -1/Command | Crushed by falling debris 19784 | -1/Command | Crushed by falling debris 19847 | -1/Command | Met MAIN.C 19856 | -1/Command | 0b10 Conduit disabled 19867 | -1/Command | Core integrity fell below 20% 19882 | -1/Command | MAIN.C activated Command garrisons 19887 | -1/Command | Discovered new exit (range 18) 19892 | -1/Command | Spotted B-99 Colossus 19912 | -1/Command | Warped through subspace to slip node 19912 | -1/Command | Discovered new exit (range 4) 19920 | -1/Command | Entered Access_0 19921 | -1/Access_0 | Sensed 3 artifacts in vicinity 19921 | -1/Access_0 | Met Architect 19921 | -1/Access_0 | Destroyed Architect 19922 | -1/Access_0 | Architect triggered a singularity event 19923 | -1/Access_0 | Warped through subspace to slip node 19923 | -1/Access_0 | Discovered new exit (range 8) 19926 | *** | Escaped singularity! Last Messages --------------- 19921_ Penetrated by Quantum Shear. Architect: Cosplay won't save you now, Cogmind. But that's a neat trick. We clearly still have much to learn about Sigix technology, and LRCs in particular. [Achievement: Behind The Curtain] 19921_ Beam penetrates Architect. 19921_ Architect: "If I can't win, no one wins!" [Achievement: The Bigger They Are] 19921_ Architect destroyed. 19922_ A0_COM: Initiating irreversible singularity event. Goodbye. 19923_ A0_COM: INTRUDER ALERT. CALLING ALL ARCHITECTS. 19923_ A0_COM: 10. 19923_ Warped through subspace, drawn to slip node. 19923_ EXIT=FOUND 19924_ A0_COM: 9. 19925_ A0_COM: 8. 19926_ A0_COM: 7. [Achievement: Planet Killer] [Achievement: Data Run] [Achievement: By A Hair] Map ----- +----------------------------------------------------+ | | | | | | | | | | | | | | | | | | | | | | | | | | | | | | | | | ????????????###########################??????????? | | ???????????#############################?????????? | | ???????????#############################?????????? | | ??????????###############################????????? | | ?????????#################################???????? | | ?????????#################################???????? | | ?????????#################################???????? | | ????????################# #################??????? | | ????????################ ################??????? | | ????????################ X ################??????? | | ????????################ ################??????? | | ???????################ ################??????? | | ???????################ ##################?????? | | ???????################# ################??????? | | ???????################ ################??????? | | ???????################ ##################?????? | | ??????################# < ################??????? | | ???????################ #################??????? | | ???????################# #################??????? | | ???????####################################??????? | | ???????####################################??????? | | ???????###################################???????? | | ????????##################################???????? | | ????????##################################???????? | | ????????#################################????????? | | ?????????###############################?????????? | | ??????????##############################?????????? | | ??????????#############################??????????? | | ???????????###########################???????????? | | ????????????#########################????????????? | | ?????????????#######################?????????????? | | ???????????????###################???????????????? | | ????????????????#################????????????????? | | ???????????????????###########???????????????????? | +----------------------------------------------------+ Best States ------------- Heat Dissipation 141 Energy Generation 67 Energy Capacity 1220 Matter Stores 400 Matter Capacity 400 Sight Range 16 Robot Scan Range 16 Terrain Scan Density 10 Jamming Range 12 Cloak Strength 5 Power Amplification 20 Additional Mass Support 9 Armor Coverage 675 Resistance: KI 50 Resistance: TH 50 Resistance: EX 50 Resistance: EM 50 Resistance: I 50 Resistance: S 50 Resistance: P 50 Core Shielding 20 Phase Shifting 20 Evasion (%) 89 Melee Accuracy 8 Recoil Reduction 6 Kinecelleration 30 Force Boost 40 Offensive Hacking 45 Defensive Hacking 45 Authchip Count 4 Item Schematics ----------------- None Robot Schematics ------------------ None Fabricated ------------ Cld. Gravmag System | x1 | -5/Factory Cld. Gravmag System | x1 | -3/Research | Authchip Cld. Gravmag System | x1 | -3/Research | Authchip Cld. Gravmag System | x1 | -3/Research | Authchip Cld. Gravmag System | x1 | -3/Research | Authchip Repaired ---------- Nothing Alien Tech Used ----------------- Core Cannon Core Reset Matrix Sigix Broadsword Microwarp Drive Integrated Mediator Core Membrane Dimensional Node Initializer Sigix Sheargun Subatomic Replicator LRC Inertial Stabilizer Sigix Exoskeleton Transdimensional Reconstructor Core Regenerator High-powered Transdimensional Reconstructor Achievements -------------- Behind The Curtain Beloved By A Hair Data Run Planet Killer The Bigger They Are Challenges ------------ None Game ------ Seed EnhancedTractorSubcomponent Manual? 0 Play Time 04:05:09 Cumulative 305.5 hours Start 2025.09.18 @ 21:58:01 End 2025.09.19 @ 03:27:51 Sessions 5 Manual Loads 0 Difficulty Rogue Special Mode None Game No. 424 Rogue 424 Adventurer 0 Explorer 0 Win Type 6 Total 10 Types 5/0/1/2/1/0/1/0/0/0 Lore% 86 Gallery% 81 Achievement% 67 Wizard Run 0 Options --------- Layout 0 ASCII 0 Keyboard 0 Movement Mouse Keybinds 0 Fullscreen 1 Font 24/Tamsyn Map View 76x50 Zoom Use 0% Tactical HUD 1 Map Filters NONE Filters NONE Steam 1 RUN: 6085f296-6b1d-4432-ab01-280cb6e0feb7